bitfinex/quotes_SOLUSD_20250108
["timestamp","ask_amount","ask_price","bid_price","bid_amount"]
[1736315375477,0.12549,197.48,197.47,4.93919766]
[1736315376409,83.0,197.5,197.49,4.93919766]
[1736315377002,83.12549,197.5,197.49,4.93919766]
[1736315381689,0.12549,197.49,197.48,4.93919766]
[1736315382196,20.12549,197.48,197.47,4.93919766]
[1736315384292,0.12549,197.47,197.46,4.93919766]
[1736315387514,0.12549,197.47,197.45,4.93919766]
[1736315387515,83.12549,197.47,197.45,4.93919766]
[1736315387808,0.12549,197.45,197.44,4.93919766]
[1736315388597,20.12549,197.45,197.44,4.93919766]
[1736315388814,0.12549,197.45,197.44,4.93919766]
[1736315390318,20.12549,197.44,197.43,4.93919766]
[1736315390519,103.12549,197.43,197.41,4.93919766]
[1736315391403,83.0,197.42,197.4,4.93919766]
[1736315391605,20.12549,197.36,197.35,4.93919766]
[1736315391902,22.56549,197.36,197.35,4.93919766]
[1736315394726,0.12549,197.35,197.34,4.93919766]
[1736315395723,0.12549,197.35,197.33,4.93919766]
[1736315396424,0.12549,197.35,197.32,4.93919766]
[1736315397422,0.12549,197.35,197.33,4.93919766]
[1736315398623,0.12549,197.35,197.3,0.0097323]
[1736315398624,0.12549,197.33,197.32,4.93919766]
[1736315399917,0.12549,197.33,197.31,4.93919766]
[1736315400097,0.12549,197.31,197.3,4.94892996]
[1736315402624,0.12549,197.31,197.3,0.0097323]
[1736315403024,0.12549,197.31,197.3,4.94892996]
[1736315404125,20.0,197.31,197.3,4.94892996]
[1736315404507,20.12549,197.31,197.3,4.94892996]
[1736315404903,20.12549,197.31,197.3,0.0097323]
[1736315405108,20.12549,197.31,197.3,4.94892996]
[1736315412841,22.54549,197.31,197.3,4.94892996]
[1736315413338,30.12549,197.29,197.28,4.93919766]
[1736315413536,0.12549,197.25,197.24,4.93919766]
[1736315413837,0.12549,197.25,197.22,4.93919766]
[1736315414053,0.12549,197.23,197.22,4.93919766]
[1736315417123,0.12549,197.21,197.19,4.93919766]
[1736315417333,0.12549,197.21,197.2,4.93919766]
[1736315418422,30.12549,197.2,197.19,4.93919766]
[1736315418731,0.12549,197.19,197.18,4.93919766]
[1736315421247,83.12549,197.19,197.18,4.93919766]
[1736315423961,0.12549,197.17,197.16,4.93919766]
[1736315424149,2.54549,197.17,197.16,4.93919766]
[1736315424346,0.12549,197.16,197.15,4.93919766]
[1736315424524,30.12549,197.16,197.15,4.93919766]
[1736315425450,0.12549,197.13,197.11,4.93919766]
[1736315425749,30.12549,197.12,197.11,4.93919766]
[1736315427449,20.12549,197.1,197.09,4.93919766]
[1736315427749,22.54549,197.1,197.09,4.93919766]
[1736315428938,22.54549,197.1,197.03,6.4026]
[1736315428939,0.12549,197.09,197.08,4.93919766]
[1736315429132,20.12549,197.08,197.07,4.93919766]
[1736315429453,30.12549,197.06,197.04,4.93919766]
[1736315429747,20.12549,197.04,197.03,4.93919766]
[1736315430132,50.12549,197.04,197.03,4.93919766]
[1736315430346,22.54549,197.04,197.03,4.93919766]
[1736315433352,0.12549,197.03,197.02,4.93919766]
[1736315434752,83.12549,197.03,197.02,4.93919766]
[1736315435267,83.12549,197.03,196.98,6.4887]
[1736315435268,83.12549,197.03,197.01,4.93919766]
[1736315435467,83.12549,197.03,197.02,4.93919766]
[1736315436258,113.0,197.1,197.08,4.93919766]
[1736315436459,20.12549,197.08,197.07,4.93919766]
[1736315436957,20.12549,197.05,197.04,4.93919766]
[1736315437254,20.12549,197.05,196.96,15.45843821]
[1736315437255,20.12549,197.04,197.03,4.93919766]
[1736315437877,0.12549,197.02,197.01,4.93919766]
[1736315438076,2.54549,197.02,196.99,4.93919766]
[1736315438275,2.54549,197.02,196.93,6.2297]
[1736315438276,20.12549,196.98,196.97,4.93919766]
[1736315439141,0.12549,196.98,196.97,4.93919766]
[1736315440370,50.12549,196.93,196.92,4.93919766]
[1736315440585,52.54549,196.93,196.92,4.93919766]
[1736315440874,22.54549,196.93,196.92,4.93919766]
[1736315443570,2.54549,196.93,196.92,4.93919766]
[1736315445462,0.12549,196.92,196.91,4.93919766]
[1736315445663,0.12549,196.9,196.89,4.93919766]
[1736315446153,20.12549,196.9,196.89,4.93919766]
[1736315446869,22.42,196.93,196.92,4.93919766]
[1736315447259,22.5,196.93,196.92,4.93919766]
[1736315447565,20.12549,196.92,196.91,4.93919766]
[1736315452077,83.0,196.99,196.97,4.93919766]
[1736315452267,30.0,196.97,196.96,4.93919766]
[1736315452776,113.0,196.99,196.98,4.93919766]
[1736315452955,113.12549,196.99,196.98,4.93919766]
[1736315453160,85.62549,196.99,196.98,4.93919766]
[1736315453378,20.12549,196.97,196.96,4.93919766]
[1736315454873,0.12549,196.96,196.94,4.93919766]
[1736315455076,20.12549,196.88,196.87,4.93919766]
[1736315455283,22.62549,196.88,196.87,4.93919766]
[1736315455458,0.12549,196.83,196.82,4.93919766]
[1736315456189,0.12549,196.85,196.84,4.93919766]
[1736315457179,20.12549,196.84,196.83,4.93919766]
[1736315457382,0.12549,196.81,196.79,4.93919766]
[1736315457590,20.12549,196.78,196.77,4.93919766]
[1736315460985,0.12549,196.76,196.75,4.93919766]
[1736315463194,2.5,196.8,196.78,4.93919766]
[1736315463195,30.0,196.8,196.78,4.93919766]
[1736315463396,30.0,196.75,196.74,4.93919766]
[1736315463574,30.0,196.75,196.69,6.2879]
[1736315463575,0.12549,196.74,196.73,4.93919766]
[1736315463973,50.12549,196.73,196.72,4.93919766]
[1736315464574,20.12549,196.73,196.72,4.93919766]
[1736315465072,0.12549,196.7,196.68,4.93919766]
[1736315465392,30.0,196.71,196.68,4.93919766]
[1736315465393,22.62549,196.69,196.68,4.93919766]
[1736315466315,32.5,196.69,196.68,4.93919766]
[1736315466681,32.62549,196.69,196.68,4.93919766]
[1736315467204,0.12549,196.68,196.67,4.93919766]
[1736315467809,30.0,196.61,196.56,4.93919766]
[1736315467971,0.12549,196.57,196.54,4.93919766]
[1736315468282,30.12549,196.57,196.52,4.93919766]
[1736315468607,30.12549,196.57,196.53,4.93919766]
[1736315468798,12.71270234,196.56,196.55,6.667]
[1736315469175,36.61507634,196.56,196.55,6.667]
[1736315469382,30.0,196.4,196.39,4.93919766]
[1736315469584,2.5,196.4,196.39,4.93919766]
[1736315470178,30.0,196.43,196.42,4.93919766]
[1736315470497,2.62549,196.43,196.42,4.93919766]
[1736315471193,2.62549,196.43,196.35,5.0]
[1736315471194,0.12549,196.42,196.41,4.93919766]
[1736315472184,50.12549,196.42,196.22,2.62434504]
[1736315472389,50.12549,196.42,196.13,1.5057]
[1736315472390,30.0,196.33,196.25,1.5051]
[1736315472592,30.0,196.39,196.26,10.0]
[1736315472776,2.56,196.41,196.32,16.5438]
[1736315472977,2.56,196.41,196.32,6.5438]
[1736315473390,0.12549,196.39,196.32,6.5438]
[1736315474101,2.56,196.41,196.32,6.5438]
[1736315474400,30.0,196.44,196.35,24.93866915]
[1736315474600,30.0,196.44,196.36,23.776884]
[1736315474601,0.12549,196.43,196.36,23.776884]
[1736315475124,0.12549,196.43,196.34,23.776884]
[1736315475584,0.12549,196.38,196.33,1.5956]
[1736315475786,0.12549,196.35,196.33,1.5956]
[1736315475987,0.12549,196.35,196.33,26.53426915]
[1736315476185,2.56,196.4,196.34,23.776884]
[1736315476519,2.56,196.43,196.34,23.776884]
[1736315476809,20.12549,196.42,196.35,24.93866915]
[1736315477005,0.12549,196.42,196.35,24.93866915]
[1736315477205,0.12549,196.42,196.36,23.776884]
[1736315477411,0.12549,196.42,196.37,24.93866915]
[1736315478090,2.68549,196.45,196.37,24.93866915]
[1736315478402,2.68549,196.45,196.41,24.93866915]
[1736315480006,0.12549,196.45,196.42,23.776884]
[1736315480220,12.68936589,196.53,196.46,8.0134]
[1736315480410,12.68936589,196.53,196.51,24.93866915]
[1736315480915,0.12549,196.51,196.5,24.93866915]
[1736315481410,0.12549,196.51,196.49,24.93866915]
[1736315481800,0.12549,196.51,196.47,24.93866915]
[1736315482209,0.12549,196.51,196.46,8.0134]
[1736315482611,0.12549,196.51,196.46,32.95206915]
[1736315482816,0.12549,196.51,196.48,24.93866915]
[1736315483321,0.12549,196.51,196.47,24.93866915]
[1736315484030,0.12549,196.51,196.46,32.95206915]
[1736315484421,0.12549,196.51,196.47,24.93866915]
[1736315486221,0.12549,196.51,196.46,32.95206915]
[1736315486608,0.12549,196.51,196.46,8.0134]
[1736315486832,20.0,196.49,196.46,1.6603]
[1736315487007,20.0,196.49,196.45,24.93866915]
[1736315487008,30.12549,196.48,196.42,6.3567]
[1736315489122,30.12549,196.48,196.42,31.29536915]
[1736315489826,30.12549,196.48,196.4,26.58076915]
[1736315491016,30.12549,196.48,196.42,24.93866915]
[1736315492030,0.12549,196.44,196.4,1.6421]
[1736315492205,0.12549,196.42,196.4,1.6421]
[1736315492921,0.12549,196.42,196.37,6.643]
[1736315493233,0.12549,196.42,196.38,24.93866915]
[1736315494227,30.0,196.48,196.41,24.93866915]
[1736315494422,2.56,196.47,196.45,24.93866915]
[1736315495321,0.12549,196.46,196.45,23.776884]
[1736315495529,6.667,196.52,196.46,23.776884]
[1736315495723,6.667,196.52,196.51,24.93866915]
[1736315495939,6.667,196.52,196.51,48.71555315]
[1736315496118,6.667,196.52,196.51,24.93866915]
[1736315496421,6.79249,196.52,196.51,24.93866915]
[1736315496621,0.12549,196.51,196.49,6.0646]
[1736315497204,0.12549,196.51,196.49,31.00326915]
[1736315497426,0.12549,196.51,196.5,24.93866915]
[1736315497638,0.12549,196.51,196.48,24.93866915]
[1736315498018,0.12549,196.51,196.49,24.93866915]
[1736315498518,0.12549,196.51,196.48,24.93866915]
[1736315498837,0.12549,196.51,196.49,24.93866915]
[1736315499621,0.12549,196.51,196.47,26.46796915]
[1736315499921,2.68549,196.51,196.44,31.05966915]
[1736315500116,0.12549,196.49,196.41,1.5608]
[1736315500330,0.12549,196.46,196.41,1.5608]
[1736315500525,30.12549,196.46,196.38,24.93866915]
[1736315500848,30.12549,196.46,196.37,24.93866915]
[1736315501038,0.12549,196.42,196.37,24.93866915]
[1736315501225,0.12549,196.42,196.35,1.52]
[1736315501226,2.82549,196.42,196.36,24.93866915]
[1736315502123,2.82549,196.42,196.35,26.45866915]
[1736315502546,32.82549,196.42,196.35,1.52]
[1736315503334,32.82549,196.42,196.35,26.45866915]
[1736315503637,32.82549,196.42,196.35,1.52]
[1736315503836,32.82549,196.42,196.35,26.45866915]
[1736315504620,0.12549,196.38,196.29,1.5854]
[1736315504825,0.12549,196.34,196.29,1.5854]
[1736315505344,0.12549,196.34,196.31,24.93866915]
[1736315505724,0.12549,196.34,196.3,24.93866915]
[1736315506520,0.12549,196.34,196.29,26.52406915]
[1736315507031,0.12549,196.34,196.3,24.93866915]
[1736315507441,0.12549,196.34,196.33,24.93866915]
[1736315507747,0.12549,196.34,196.32,24.93866915]
[1736315508236,0.12549,196.34,196.29,1.5854]
[1736315508628,0.12549,196.34,196.3,24.93866915]
[1736315509433,0.12549,196.34,196.29,1.5854]
[1736315509434,0.12549,196.34,196.29,26.52406915]
[1736315509758,0.12549,196.34,196.29,1.5854]
[1736315511637,30.0,196.34,196.24,24.93866915]
[1736315511860,0.12549,196.3,196.23,26.58406915]
[1736315512065,0.12549,196.3,196.25,24.93866915]
[1736315512258,0.12549,196.3,196.24,24.93866915]
[1736315512575,0.12549,196.3,196.25,24.93866915]
[1736315512864,30.12549,196.3,196.23,1.6454]
[1736315513072,30.12549,196.3,196.21,24.93866915]
[1736315513268,30.12549,196.3,196.2,24.93866915]
[1736315513443,0.12549,196.24,196.17,1.6454]
[1736315513641,2.92,196.23,196.17,1.6454]
[1736315514138,0.12549,196.22,196.12,5.0]
[1736315514344,0.12549,196.22,196.16,24.93866915]
[1736315514532,2.42,196.23,196.16,24.93866915]
[1736315514738,2.42,196.23,196.14,24.93866915]
[1736315515268,30.0,196.22,196.14,24.93866915]
[1736315515575,30.0,196.22,196.11,32.91166915]
[1736315515774,2.42,196.23,196.11,7.973]
[1736315515775,0.12549,196.19,196.11,7.973]
[1736315516067,0.12549,196.19,196.12,24.93866915]
[1736315516270,2.42,196.23,196.15,24.93866915]
[1736315516442,2.42,196.23,196.11,2.41007707]
[1736315516443,0.12549,196.17,196.11,1.6454]
[1736315516771,32.42,196.23,196.12,24.93866915]
[1736315516940,2.92,196.24,196.16,24.93866915]
[1736315517248,30.0,196.22,196.11,1.6454]
[1736315517447,2.92,196.25,196.18,24.93866915]
[1736315517666,2.92,196.25,196.2,24.93866915]
[1736315518060,2.92,196.25,196.21,23.776884]
[1736315518369,2.92,196.25,196.2,24.93866915]
[1736315518751,0.12549,196.24,196.2,24.93866915]
[1736315519175,2.92,196.26,196.23,23.776884]
[1736315519384,2.92,196.31,196.25,23.776884]
[1736315519565,2.92,196.31,196.26,24.93866915]
[1736315519883,0.12549,196.3,196.26,24.93866915]
[1736315521361,15.7462945,196.37,196.29,23.776884]
[1736315521591,15.7462945,196.37,196.28,24.93866915]
[1736315521592,0.12549,196.36,196.28,24.93866915]
[1736315522180,0.12549,196.36,196.3,24.93866915]
[1736315522480,0.12549,196.36,196.31,23.776884]
[1736315523160,0.12549,196.36,196.32,24.93866915]
[1736315523775,0.12549,196.36,196.33,23.776884]
[1736315523954,20.40844,196.45,196.35,23.776884]
[1736315524158,20.40844,196.45,196.37,23.776884]
[1736315524366,30.0,196.5,196.38,24.93866915]
[1736315524655,0.12549,196.47,196.38,24.93866915]
[1736315525155,0.12549,196.42,196.33,23.776884]
[1736315525388,0.12549,196.4,196.33,48.71555315]
[1736315525981,0.12549,196.4,196.35,24.93866915]
[1736315526173,2.92,196.43,196.37,24.93866915]
[1736315526679,0.12549,196.42,196.37,24.93866915]
[1736315527083,0.12549,196.42,196.39,24.93866915]
[1736315527264,30.0,196.52,196.39,24.93866915]
[1736315527469,0.12549,196.48,196.41,24.93866915]
[1736315527784,37.73838847,196.56,196.43,24.93866915]
[1736315528168,30.0,196.53,196.43,24.93866915]
[1736315528369,0.12549,196.52,196.43,24.93866915]
[1736315528680,0.12549,196.52,196.4,0.76342651]
[1736315528681,2.92,196.52,196.46,23.776884]
[1736315529193,12.95992842,196.57,196.47,24.93866915]
[1736315529486,30.0,196.55,196.46,6.3212]
[1736315530396,0.12549,196.54,196.46,6.3212]
[1736315531309,12.95992842,196.57,196.48,24.93866915]
[1736315531474,2.92,196.56,196.49,23.776884]
[1736315531674,2.92,196.56,196.48,24.93866915]
[1736315531906,30.12549,196.55,196.46,31.25986915]
[1736315532411,2.92,196.56,196.43,24.93866915]
[1736315532412,0.12549,196.52,196.43,24.93866915]
[1736315533198,0.12549,196.52,196.44,24.93866915]
[1736315534298,0.12549,196.52,196.43,24.93866915]
[1736315535029,30.0,196.55,196.45,24.93866915]
[1736315535321,0.12549,196.54,196.45,24.93866915]
[1736315536527,0.12549,196.53,196.47,24.93866915]
[1736315537708,2.92,196.56,196.48,24.93866915]
[1736315538532,0.12549,196.55,196.44,34.54013848]
[1736315538719,0.12549,196.55,196.49,24.93866915]
[1736315539040,0.12549,196.55,196.46,24.93866915]
[1736315539199,0.12549,196.55,196.47,23.776884]
[1736315540517,0.12549,196.55,196.47,24.93866915]
[1736315540726,0.12549,196.55,196.47,23.776884]
[1736315541222,0.12549,196.55,196.45,24.93866915]
[1736315541421,30.12549,196.52,196.43,24.93866915]
[1736315541604,30.12549,196.52,196.37,1.5547]
[1736315541803,30.12549,196.52,196.4,24.93866915]
[1736315542002,30.12549,196.52,196.41,48.71555315]
[1736315542207,0.12549,196.48,196.37,1.5547]
[1736315542410,0.12549,196.46,196.37,1.5547]
[1736315543125,3.04,196.47,196.37,1.5547]
[1736315543417,0.12549,196.46,196.4,24.93866915]
[1736315545311,0.12549,196.46,196.42,24.93866915]
[1736315545617,0.12549,196.46,196.43,23.776884]
[1736315546126,0.12549,196.46,196.39,24.93866915]
[1736315546314,0.12549,196.46,196.37,1.5547]
[1736315546634,0.12549,196.46,196.37,26.49336915]
[1736315547414,0.12549,196.46,196.37,1.5547]
[1736315547615,0.12549,196.46,196.36,30.95476915]
[1736315547616,0.12549,196.46,196.32,0.76367326]
[1736315547829,0.12549,196.46,196.35,24.93866915]
[1736315548227,0.12549,196.43,196.33,24.93866915]
[1736315548409,30.12549,196.43,196.33,24.93866915]
[1736315548610,30.12549,196.43,196.3,24.93866915]
[1736315548926,30.12549,196.39,196.28,26.51416915]
[1736315549224,6.1253,196.43,196.3,24.93866915]
[1736315549225,0.12549,196.37,196.3,24.93866915]
[1736315549426,0.12549,196.37,196.28,26.51416915]
[1736315549610,0.12549,196.37,196.28,1.5755]
[1736315549816,0.12549,196.37,196.26,24.93866915]
[1736315550309,0.12549,196.34,196.26,24.93866915]
[1736315550505,0.12549,196.34,196.27,23.776884]
[1736315551227,0.12549,196.34,196.25,24.93866915]
[1736315552043,0.12549,196.34,196.26,23.776884]
[1736315552928,0.12549,196.34,196.26,24.93866915]
[1736315553127,0.12549,196.34,196.27,23.776884]
[1736315553307,0.12549,196.34,196.27,48.71555315]
[1736315554433,3.04,196.41,196.32,48.71555315]
[1736315554744,3.04,196.41,196.34,24.93866915]
[1736315554909,3.04,196.41,196.3,24.93866915]
[1736315555215,3.04,196.41,196.34,23.776884]
[1736315555605,0.12549,196.4,196.32,24.93866915]
[1736315555826,0.12549,196.4,196.31,24.93866915]
[1736315556017,30.12549,196.4,196.28,24.93866915]
[1736315556202,0.12549,196.36,196.25,24.93866915]
[1736315556608,3.04,196.41,196.3,24.93866915]
[1736315557026,20.12549,196.4,196.3,24.93866915]
[1736315557718,20.12549,196.4,196.31,23.776884]
[1736315557921,30.0,196.45,196.33,24.93866915]
[1736315558122,3.04,196.44,196.34,23.776884]
[1736315558324,0.12549,196.44,196.31,0.76389026]
[1736315558536,20.12549,196.42,196.32,24.93866915]
[1736315558729,20.12549,196.42,196.32,23.776884]
[1736315559532,20.12549,196.42,196.3,24.93866915]
[1736315560037,20.12549,196.42,196.31,23.776884]
[1736315560335,20.12549,196.42,196.32,23.776884]
[1736315560918,20.12549,196.42,196.31,23.776884]
[1736315561330,20.12549,196.42,196.32,23.776884]
[1736315561637,20.12549,196.42,196.31,23.776884]
[1736315562042,0.12549,196.39,196.25,0.76386853]
[1736315562219,0.12549,196.39,196.27,24.93866915]
[1736315562419,0.12549,196.39,196.27,25.70258626]
[1736315562620,0.12549,196.36,196.26,24.93866915]
[1736315562820,0.12549,196.34,196.25,24.93866915]
[1736315563132,0.12549,196.34,196.26,23.776884]
[1736315563440,0.12549,196.34,196.26,24.93866915]
[1736315563821,0.12549,196.34,196.27,23.776884]
[1736315565339,0.12549,196.34,196.26,23.776884]
[1736315565638,0.12549,196.34,196.23,26.49116915]
[1736315565839,0.12549,196.34,196.23,1.5525]
[1736315566340,0.12549,196.32,196.23,1.5525]
[1736315566556,0.12549,196.33,196.23,1.5525]
[1736315566841,0.12549,196.33,196.2,24.93866915]
[1736315567029,0.12549,196.33,196.21,23.776884]
[1736315567357,0.12549,196.33,196.22,23.776884]
[1736315568530,30.12549,196.3,196.19,24.93866915]
[1736315568836,30.12549,196.3,196.2,23.776884]
[1736315569158,20.0,196.29,196.2,23.776884]
[1736315569353,0.12549,196.28,196.2,23.776884]
[1736315569557,0.12549,196.26,196.2,23.776884]
[1736315570453,0.12549,196.26,196.19,24.93866915]
[1736315570632,0.12549,196.26,196.2,23.776884]
[1736315570831,0.12549,196.26,196.22,48.71555315]
[1736315571354,0.12549,196.26,196.22,23.776884]
[1736315571662,0.12549,196.26,196.19,24.93866915]
[1736315571861,0.12549,196.26,196.2,23.776884]
[1736315572445,0.12549,196.26,196.21,23.776884]
[1736315573540,0.12549,196.26,196.19,24.93866915]
[1736315573745,0.12549,196.26,196.18,26.58076915]
[1736315573948,0.12549,196.26,196.19,23.776884]
[1736315575054,0.12549,196.26,196.18,1.6421]
[1736315575355,0.12549,196.26,196.16,24.93866915]
[1736315575532,0.12549,196.26,196.15,24.93866915]
[1736315576140,0.12549,196.26,196.16,23.776884]
[1736315577255,0.12549,196.26,196.16,48.71555315]
[1736315577452,0.12549,196.26,196.17,23.776884]
[1736315577857,0.12549,196.26,196.16,23.776884]
[1736315578035,0.12549,196.26,196.17,23.776884]
[1736315578631,0.12549,196.26,196.16,23.776884]
[1736315579239,0.12549,196.26,196.16,24.93866915]
[1736315579440,2.98,196.26,196.2,15.61118108]
[1736315579957,0.12549,196.25,196.2,23.776884]
[1736315580255,0.12549,196.25,196.16,15.61118108]
[1736315580452,0.12549,196.25,196.17,15.61118108]
[1736315580657,0.12549,196.25,196.18,15.61118108]
[1736315580850,0.12549,196.25,196.18,23.776884]
[1736315581646,0.12549,196.25,196.2,39.38806508]
[1736315582157,0.12549,196.25,196.2,23.776884]
[1736315582453,0.12549,196.25,196.18,15.61118108]
[1736315582656,0.12549,196.25,196.17,15.61118108]
[1736315582851,0.12549,196.25,196.18,15.61118108]
[1736315583057,0.12549,196.25,196.19,15.61118108]
[1736315583438,0.12549,196.25,196.19,23.776884]
[1736315584257,0.12549,196.25,196.14,5.0]
[1736315584258,0.12549,196.25,196.14,15.61118108]
[1736315584553,0.12549,196.23,196.14,15.61118108]
[1736315584728,0.12549,196.23,196.15,23.776884]
[1736315585133,0.12549,196.23,196.13,17.11558108]
[1736315585944,0.12549,196.23,196.13,1.5044]
[1736315586839,0.12549,196.23,196.14,23.776884]
[1736315587240,0.12549,196.23,196.14,39.38806508]
[1736315587857,0.12549,196.21,196.1,15.61118108]
[1736315588048,0.12549,196.21,196.12,15.61118108]
[1736315588353,0.12549,196.19,196.07,0.09032814]
[1736315588656,30.0,196.2,196.08,15.61118108]
[1736315588657,0.12549,196.17,196.08,15.61118108]
[1736315588851,0.12549,196.17,196.1,15.61118108]
[1736315589056,0.12549,196.17,196.11,23.776884]
[1736315589253,20.0,196.19,196.11,23.776884]
[1736315589439,0.12549,196.15,196.11,23.776884]
[1736315589642,0.12549,196.15,196.09,39.38806508]
[1736315590246,0.12549,196.15,196.08,16.37587662]
[1736315591057,0.12549,196.15,196.09,23.776884]
[1736315591251,0.12549,196.15,196.09,39.38806508]
[1736315591458,0.12549,196.15,196.09,40.15274218]
[1736315591836,0.12549,196.15,196.09,39.38806508]
[1736315592030,0.12549,196.17,196.11,15.61118108]
[1736315592255,0.12549,196.17,196.13,39.38806508]
[1736315592448,0.12549,196.17,196.13,23.776884]
[1736315592647,0.12549,196.18,196.1,23.776884]
[1736315592856,0.12549,196.18,196.1,39.38806508]
[1736315593161,0.12549,196.18,196.12,23.776884]
[1736315593362,0.12549,196.18,196.12,39.38806508]
[1736315593532,0.12549,196.18,196.14,15.61118108]
[1736315593741,20.0,196.24,196.15,23.776884]
[1736315593937,3.10549,196.23,196.15,23.776884]
[1736315594241,0.12549,196.21,196.15,23.776884]
[1736315594637,0.12549,196.21,196.14,23.776884]
[1736315595038,20.0,196.24,196.12,16.37574622]
[1736315595039,0.12549,196.23,196.12,16.37574622]
[1736315595263,0.12549,196.21,196.14,23.776884]
[1736315598546,0.12549,196.21,196.12,15.61118108]
[1736315598961,0.12549,196.21,196.11,15.61118108]
[1736315599680,0.12549,196.21,196.12,39.38806508]
[1736315600155,0.12549,196.21,196.13,23.776884]
[1736315601063,0.12549,196.21,196.12,15.61118108]
[1736315601262,0.12549,196.21,196.13,23.776884]
[1736315601681,0.12549,196.21,196.11,23.776884]
[1736315601889,0.12549,196.19,196.11,23.776884]
[1736315602056,0.12549,196.19,196.09,15.61118108]
[1736315602656,0.12549,196.19,196.1,39.38806508]
[1736315603453,20.0,196.2,196.1,39.38806508]
[1736315603663,0.12549,196.19,196.1,39.38806508]
[1736315604362,0.12549,196.19,196.11,15.61118108]
[1736315605182,22.98,196.22,196.12,15.61118108]
[1736315605396,30.0,196.25,196.14,15.61118108]
[1736315605577,2.86,196.21,196.14,15.61118108]
[1736315605875,0.12549,196.2,196.15,23.776884]
[1736315606676,0.12549,196.2,196.14,23.776884]
[1736315608371,0.12549,196.2,196.12,15.61118108]
[1736315608684,0.12549,196.2,196.1,15.61118108]
[1736315608984,0.12549,196.2,196.11,15.61118108]
[1736315609182,0.12549,196.2,196.09,15.61118108]
[1736315609875,0.12549,196.2,196.1,23.776884]
[1736315610980,0.12549,196.18,196.08,15.61118108]
[1736315611155,0.12549,196.18,196.09,15.61118108]
[1736315611354,0.12549,196.18,196.1,23.776884]
[1736315612377,0.12549,196.18,196.08,23.776884]
[1736315612583,0.12549,196.18,196.08,39.38806508]
[1736315612963,0.12549,196.18,196.1,23.776884]
[1736315613163,0.12549,196.18,196.1,15.61118108]
[1736315613977,20.0,196.2,196.12,39.38806508]
[1736315614200,22.86,196.2,196.12,39.38806508]
[1736315614393,0.12549,196.19,196.12,23.776884]
[1736315614765,0.12549,196.19,196.1,15.61118108]
[1736315615065,0.12549,196.19,196.12,15.61118108]
[1736315615267,0.12549,196.19,196.13,23.776884]
[1736315615580,0.12549,196.19,196.12,15.61118108]
[1736315616068,0.12549,196.19,196.13,23.776884]
[1736315616268,30.0,196.26,196.14,15.61118108]
[1736315616473,2.86,196.25,196.15,16.37567045]
[1736315616669,0.12549,196.24,196.15,16.37567045]
[1736315617184,2.98549,196.24,196.17,23.776884]
[1736315617385,6.58,196.27,196.19,23.776884]
[1736315617583,2.86,196.26,196.19,39.38806508]
[1736315617889,0.12549,196.25,196.19,39.38806508]
[1736315618181,0.12549,196.25,196.21,23.776884]
[1736315618366,0.12549,196.25,196.2,16.37547408]
[1736315618573,2.86,196.28,196.2,15.61118108]
[1736315619084,2.86,196.28,196.21,23.776884]
[1736315619264,0.12549,196.27,196.16,17.16778108]
[1736315619466,0.12549,196.27,196.16,1.5566]
[1736315619684,0.12549,196.25,196.16,1.5566]
[1736315619888,0.12549,196.25,196.15,15.61118108]
[1736315620064,0.12549,196.25,196.14,15.61118108]
[1736315620464,0.12549,196.2,196.11,1.5176]
[1736315620689,0.12549,196.18,196.11,1.5176]
[1736315620890,0.12549,196.18,196.1,15.61118108]
[1736315621081,0.12549,196.16,196.07,0.09032814]
[1736315622990,0.12549,196.16,196.07,23.86721214]
[1736315623686,30.12549,196.16,196.07,0.09032814]
[1736315623900,0.12549,196.15,196.07,0.09032814]
[1736315625369,0.12549,196.13,196.07,0.09032814]
[1736315626199,0.12549,196.11,196.07,0.09032814]
[1736315626369,0.12549,196.09,196.07,0.09032814]